[Event "Live Chess"]
[Site "Chess.com"]
[Date "2024.06.01"]
[Round "-"]
[White "elephantgerrald"]
[Black "Trendle"]
[Result "0-1"]
[WhiteElo "713"]
[BlackElo "2621"]
[TimeControl "300"]
[EndTime "9:40:43 PDT"]
[Termination "Trendle won by checkmate"]

1. e4 {[%clk 0:04:58.3]} 1... e5 {[%clk 0:04:58.4]} 2. Nf3 {[%clk 0:04:53.5]}
2... Nf6 {[%clk 0:04:57.5]} 3. Nxe5 {[%clk 0:04:49]} 3... d6 {[%clk 0:04:56.6]}
4. Nf3 {[%clk 0:04:45.6]} 4... Nxe4 {[%clk 0:04:55.8]} 5. d3 {[%clk 0:04:41.9]}
5... Nf6 {[%clk 0:04:54.2]} 6. Bg5 {[%clk 0:04:40.5]} 6... h6 {[%clk 0:04:50.7]}
7. Bxf6 {[%clk 0:04:39.3]} 7... Qxf6 {[%clk 0:04:49.9]} 8. Nc3 {[%clk
0:04:35.3]} 8... c6 {[%clk 0:04:46.2]} 9. g3 {[%clk 0:04:15.4]} 9... d5 {[%clk
0:04:43.7]} 10. Bg2 {[%clk 0:04:13.7]} 10... Bb4 {[%clk 0:04:40.5]} 11. O-O
{[%clk 0:04:11]} 11... O-O {[%clk 0:04:40]} 12. d4 {[%clk 0:04:04.3]} 12... Bg4
{[%clk 0:04:36.9]} 13. Ne2 {[%clk 0:04:00]} 13... Bxf3 {[%clk 0:04:35.3]} 14.
Nf4 {[%clk 0:03:57.2]} 14... Bxd1 {[%clk 0:04:33.8]} 15. Rfxd1 {[%clk
0:03:55.5]} 15... Nd7 {[%clk 0:04:33.1]} 16. c3 {[%clk 0:03:52.2]} 16... Bd6
{[%clk 0:04:32.3]} 17. Nd3 {[%clk 0:03:49.1]} 17... Rfe8 {[%clk 0:04:30.7]} 18.
h3 {[%clk 0:03:44.8]} 18... Re2 {[%clk 0:04:28.9]} 19. Rf1 {[%clk 0:03:31.9]}
19... Rae8 {[%clk 0:04:26.3]} 20. f4 {[%clk 0:03:24.7]} 20... Qg6 {[%clk
0:04:24.9]} 21. Rf3 {[%clk 0:03:19.6]} 21... R8e3 {[%clk 0:04:21.9]} 22. Raf1
{[%clk 0:03:08.6]} 22... Qxd3 {[%clk 0:04:19.5]} 23. Kh2 {[%clk 0:02:42.9]}
23... Rxf3 {[%clk 0:04:15.7]} 24. Rxf3 {[%clk 0:02:40.1]} 24... Qxf3 {[%clk
0:04:15.6]} 25. h4 {[%clk 0:02:36.1]} 25... Qxg2# {[%clk 0:04:15.5]} 0-1

[Event "Live Chess"]
[Site "Chess.com"]
[Date "2024.06.01"]
[Round "-"]
[White "Ninifu"]
[Black "Zhevzh1k7"]
[Result "1-0"]
[WhiteElo "2068"]
[BlackElo "1067"]
[TimeControl "300"]
[EndTime "9:40:44 PDT"]
[Termination "Ninifu won by resignation"]

1. d4 {[%clk 0:04:57]} 1... Nf6 {[%clk 0:04:58.2]} 2. c4 {[%clk 0:04:55.7]} 2...
e6 {[%clk 0:04:57.5]} 3. Nc3 {[%clk 0:04:51.1]} 3... d5 {[%clk 0:04:56.6]} 4.
cxd5 {[%clk 0:04:49.1]} 4... exd5 {[%clk 0:04:53.4]} 5. Bg5 {[%clk 0:04:47.5]}
5... Be7 {[%clk 0:04:51.6]} 6. e3 {[%clk 0:04:46.7]} 6... c6 {[%clk 0:04:47.8]}
7. Bd3 {[%clk 0:04:45.9]} 7... h6 {[%clk 0:04:45]} 8. Bf4 {[%clk 0:04:39.9]}
8... Nbd7 {[%clk 0:04:42]} 9. h3 {[%clk 0:04:39.2]} 9... c5 {[%clk 0:04:38.6]}
10. Nge2 {[%clk 0:04:37.4]} 10... c4 {[%clk 0:04:36.4]} 11. Bc2 {[%clk
0:04:35.9]} 11... a6 {[%clk 0:04:31.5]} 12. O-O {[%clk 0:04:30.5]} 12... b5
{[%clk 0:04:30.5]} 13. a3 {[%clk 0:04:29.1]} 13... Bb7 {[%clk 0:04:25.7]} 14. f3
{[%clk 0:04:27.9]} 14... O-O {[%clk 0:04:23.6]} 15. e4 {[%clk 0:04:25.1]} 15...
dxe4 {[%clk 0:04:15]} 16. fxe4 {[%clk 0:04:23]} 16... Re8 {[%clk 0:04:04]} 17.
Ng3 {[%clk 0:04:21.6]} 17... Nb6 {[%clk 0:03:53.1]} 18. Qd2 {[%clk 0:04:14.3]}
18... b4 {[%clk 0:03:41.2]} 19. axb4 {[%clk 0:04:09.8]} 19... Bxb4 {[%clk
0:03:39.8]} 20. Rae1 {[%clk 0:03:54.7]} 20... a5 {[%clk 0:03:34.6]} 21. Nf5
{[%clk 0:03:46.8]} 21... Bxc3 {[%clk 0:03:24.8]} 22. bxc3 {[%clk 0:03:44.7]}
22... Nxe4 {[%clk 0:03:19.4]} 23. Bxe4 {[%clk 0:03:35.3]} 23... Bxe4 {[%clk
0:03:12.4]} 24. Nd6 {[%clk 0:03:28.3]} 24... Re7 {[%clk 0:02:54.9]} 25. Nxe4
{[%clk 0:03:22.7]} 25... Nd5 {[%clk 0:02:50.6]} 26. Bxh6 {[%clk 0:03:17.8]}
26... gxh6 {[%clk 0:02:47.4]} 27. Qxh6 {[%clk 0:03:17.1]} 27... Re6 {[%clk
0:02:37.2]} 28. Qh5 {[%clk 0:02:54.7]} 28... Ra7 {[%clk 0:02:14.8]} 29. Ng5
{[%clk 0:02:40.8]} 29... Nf6 {[%clk 0:01:56.3]} 30. Nxe6 {[%clk 0:02:23.5]}
30... Nxh5 {[%clk 0:01:45.7]} 31. Nxd8 {[%clk 0:02:22.1]} 31... a4 {[%clk
0:01:43.2]} 32. Nc6 {[%clk 0:02:15.8]} 32... Rc7 {[%clk 0:01:34.1]} 33. Nb4
{[%clk 0:02:14.6]} 33... Ra7 {[%clk 0:01:31.6]} 34. Ra1 {[%clk 0:02:05.3]} 34...
Ng7 {[%clk 0:01:28.3]} 35. Rf6 {[%clk 0:02:02.4]} 35... Ne6 {[%clk 0:01:26.9]}
36. d5 {[%clk 0:01:40.2]} 36... Kg7 {[%clk 0:01:24.3]} 37. dxe6 {[%clk
0:01:22.1]} 37... Kxf6 {[%clk 0:01:22.4]} 38. exf7 {[%clk 0:01:20.7]} 38... Kxf7
{[%clk 0:01:21.6]} 39. Kf2 {[%clk 0:01:13.3]} 39... Ke6 {[%clk 0:01:20.6]} 40.
Ke3 {[%clk 0:01:12.4]} 40... Ke5 {[%clk 0:01:19.9]} 41. Nc6+ {[%clk 0:01:10.2]}
1-0

[Event "Live Chess"]
[Site "Chess.com"]
[Date "2024.06.01"]
[Round "-"]
[White "Duke_of_Bebington"]
[Black "booktrunk"]
[Result "0-1"]
[WhiteElo "1598"]
[BlackElo "1386"]
[TimeControl "300"]
[EndTime "9:40:51 PDT"]
[Termination "booktrunk won on time"]

1. e4 {[%clk 0:04:56.4]} 1... b6 {[%clk 0:04:55.7]} 2. d4 {[%clk 0:04:50.2]}
2... Bb7 {[%clk 0:04:53.8]} 3. Bd3 {[%clk 0:04:48.8]} 3... e6 {[%clk 0:04:50.5]}
4. Ne2 {[%clk 0:04:47.1]} 4... Nf6 {[%clk 0:04:49.2]} 5. f3 {[%clk 0:04:45.9]}
5... h6 {[%clk 0:04:46]} 6. Be3 {[%clk 0:04:44.5]} 6... a5 {[%clk 0:04:39.5]} 7.
Nbc3 {[%clk 0:04:39.9]} 7... Ba6 {[%clk 0:04:38]} 8. Bxa6 {[%clk 0:04:29.5]}
8... Nxa6 {[%clk 0:04:35.7]} 9. a3 {[%clk 0:04:26.9]} 9... c6 {[%clk 0:04:25]}
10. Qd2 {[%clk 0:04:16.5]} 10... Nc7 {[%clk 0:04:17.9]} 11. O-O {[%clk 0:03:51]}
11... Be7 {[%clk 0:04:12.7]} 12. Rad1 {[%clk 0:03:47.1]} 12... d5 {[%clk
0:03:58.8]} 13. e5 {[%clk 0:03:31.8]} 13... Nd7 {[%clk 0:03:56.5]} 14. Ng3
{[%clk 0:03:14.3]} 14... f6 {[%clk 0:03:54.6]} 15. f4 {[%clk 0:03:12.2]} 15...
f5 {[%clk 0:03:49.9]} 16. Nce2 {[%clk 0:03:01.7]} 16... c5 {[%clk 0:03:46.6]}
17. c3 {[%clk 0:02:56.5]} 17... Nb5 {[%clk 0:03:32.1]} 18. Qd3 {[%clk
0:02:46.8]} 18... c4 {[%clk 0:03:28.5]} 19. Qc2 {[%clk 0:02:40.4]} 19... O-O
{[%clk 0:03:23.7]} 20. a4 {[%clk 0:02:31.3]} 20... Na7 {[%clk 0:03:15.1]} 21. b3
{[%clk 0:02:28.5]} 21... cxb3 {[%clk 0:03:10.9]} 22. Qxb3 {[%clk 0:02:27.1]}
22... Nc6 {[%clk 0:03:05.5]} 23. Nc1 {[%clk 0:02:06.2]} 23... Qc7 {[%clk
0:03:03.4]} 24. Na2 {[%clk 0:02:03.1]} 24... Rfb8 {[%clk 0:02:56.7]} 25. c4
{[%clk 0:01:51.5]} 25... dxc4 {[%clk 0:02:39.1]} 26. Qxc4 {[%clk 0:01:50.2]}
26... Nf8 {[%clk 0:02:32.1]} 27. Nc3 {[%clk 0:01:33.8]} 27... Rc8 {[%clk
0:02:29]} 28. Nb5 {[%clk 0:01:23.7]} 28... Qd7 {[%clk 0:02:26.5]} 29. Qd3 {[%clk
0:01:10.9]} 29... Nb4 {[%clk 0:02:24.5]} 30. Qd2 {[%clk 0:01:05.2]} 30... Rc2
{[%clk 0:02:21]} 31. Qe1 {[%clk 0:00:58.2]} 31... Rac8 {[%clk 0:02:19.2]} 32.
Ne2 {[%clk 0:00:43.6]} 32... Nd3 {[%clk 0:02:14.2]} 33. Qg3 {[%clk 0:00:27.4]}
33... Rxe2 {[%clk 0:02:10.2]} 34. Rxd3 {[%clk 0:00:20.8]} 34... Qe8 {[%clk
0:02:00.4]} 35. Rfd1 {[%clk 0:00:16.6]} 35... Rec2 {[%clk 0:01:53.9]} 36. d5
{[%clk 0:00:15.5]} 36... Re2 {[%clk 0:01:49.7]} 37. dxe6 {[%clk 0:00:13.5]}
37... Rcc2 {[%clk 0:01:46.8]} 38. Bf2 {[%clk 0:00:09]} 38... Rxf2 {[%clk
0:01:43.8]} 39. Qxf2 {[%clk 0:00:07.7]} 39... Rxf2 {[%clk 0:01:41.8]} 40. Kxf2
{[%clk 0:00:07.6]} 40... Ng6 {[%clk 0:01:40.2]} 41. Nd6 {[%clk 0:00:06.7]} 41...
Bxd6 {[%clk 0:01:37.6]} 42. Rxd6 {[%clk 0:00:06]} 42... Nf8 {[%clk 0:01:34]} 43.
e7 {[%clk 0:00:03.8]} 43... Qxe7 {[%clk 0:01:31.6]} 44. Rd8 {[%clk 0:00:03]}
44... Kf7 {[%clk 0:01:28]} 0-1

[Event "Live Chess"]
[Site "Chess.com"]
[Date "2024.06.01"]
[Round "-"]
[White "LaupMiths"]
[Black "Demyan7777"]
[Result "1-0"]
[WhiteElo "1891"]
[BlackElo "1674"]
[TimeControl "300"]
[EndTime "9:41:07 PDT"]
[Termination "LaupMiths won by checkmate"]

1. Nf3 {[%clk 0:04:56]} 1... d5 {[%clk 0:04:56.7]} 2. g3 {[%clk 0:04:54.4]} 2...
Nf6 {[%clk 0:04:55.3]} 3. Bg2 {[%clk 0:04:53.3]} 3... e6 {[%clk 0:04:53.2]} 4.
O-O {[%clk 0:04:51.1]} 4... Be7 {[%clk 0:04:51.7]} 5. b3 {[%clk 0:04:48.1]} 5...
O-O {[%clk 0:04:50.4]} 6. Bb2 {[%clk 0:04:47]} 6... c5 {[%clk 0:04:49.8]} 7. d3
{[%clk 0:04:43.4]} 7... Nc6 {[%clk 0:04:49.1]} 8. Nbd2 {[%clk 0:04:40.8]} 8...
b6 {[%clk 0:04:46.6]} 9. a4 {[%clk 0:04:37.3]} 9... Bb7 {[%clk 0:04:45.8]} 10.
a5 {[%clk 0:04:36]} 10... Nxa5 {[%clk 0:04:43.1]} 11. c4 {[%clk 0:04:35.2]}
11... Nc6 {[%clk 0:04:41.3]} 12. e3 {[%clk 0:04:28.5]} 12... Rc8 {[%clk
0:04:39.2]} 13. Qe2 {[%clk 0:04:26.9]} 13... Qc7 {[%clk 0:04:37.4]} 14. Rfc1
{[%clk 0:04:24.7]} 14... Rfd8 {[%clk 0:04:35.7]} 15. Nh4 {[%clk 0:04:18.5]}
15... a6 {[%clk 0:04:21.8]} 16. f4 {[%clk 0:04:16.1]} 16... d4 {[%clk
0:04:17.3]} 17. e4 {[%clk 0:04:14]} 17... e5 {[%clk 0:04:15.5]} 18. f5 {[%clk
0:04:12.6]} 18... Nb4 {[%clk 0:04:13]} 19. g4 {[%clk 0:04:02.4]} 19... Nxe4
{[%clk 0:04:11.7]} 20. Nxe4 {[%clk 0:03:58]} 20... Bxh4 {[%clk 0:04:09.6]} 21.
g5 {[%clk 0:03:55.8]} 21... Bxe4 {[%clk 0:04:08]} 22. Bxe4 {[%clk 0:03:53.3]}
22... Bxg5 {[%clk 0:04:06.7]} 23. Rf1 {[%clk 0:03:50.5]} 23... Be3+ {[%clk
0:04:05.1]} 24. Kh1 {[%clk 0:03:49.1]} 24... f6 {[%clk 0:04:00.2]} 25. Rf3
{[%clk 0:03:47]} 25... Qf7 {[%clk 0:03:45.4]} 26. Rg3 {[%clk 0:03:41.6]} 26...
Bg5 {[%clk 0:03:41.5]} 27. Rag1 {[%clk 0:03:36.3]} 27... Kh8 {[%clk 0:03:27]}
28. Rg4 {[%clk 0:03:33.2]} 28... Rg8 {[%clk 0:03:19.4]} 29. h4 {[%clk 0:03:30]}
29... Be3 {[%clk 0:03:17.7]} 30. R1g2 {[%clk 0:03:27.4]} 30... Qd7 {[%clk
0:03:06]} 31. Qf1 {[%clk 0:03:23.6]} 31... a5 {[%clk 0:03:01.9]} 32. Bc1 {[%clk
0:03:20.9]} 32... Bxc1 {[%clk 0:02:57.5]} 33. Qxc1 {[%clk 0:03:20.8]} 33... a4
{[%clk 0:02:55.9]} 34. bxa4 {[%clk 0:03:17.4]} 34... Qxa4 {[%clk 0:02:54.9]} 35.
h5 {[%clk 0:03:13.5]} 35... Rc7 {[%clk 0:02:06.1]} 36. h6 {[%clk 0:03:08.8]}
36... Na2 {[%clk 0:01:51.6]} 37. Qg1 {[%clk 0:03:04.8]} 37... Qa7 {[%clk
0:01:45.6]} 38. Bd5 {[%clk 0:03:00.7]} 38... Nc3 {[%clk 0:01:27.4]} 39. Bxg8
{[%clk 0:02:58.2]} 39... Kxg8 {[%clk 0:01:19.1]} 40. Rxg7+ {[%clk 0:02:57.1]}
40... Kf8 {[%clk 0:01:17.2]} 41. Rg8+ {[%clk 0:02:54.2]} 41... Ke7 {[%clk
0:01:15.8]} 42. R2g7+ {[%clk 0:02:52.4]} 42... Kd6 {[%clk 0:01:14.1]} 43. Qg2
{[%clk 0:02:27.7]} 43... Qa1+ {[%clk 0:01:10.8]} 44. Kh2 {[%clk 0:02:25.8]}
44... Rxg7 {[%clk 0:01:07.9]} 45. hxg7 {[%clk 0:02:19.2]} 45... Qe1 {[%clk
0:01:06.7]} 46. Rd8+ {[%clk 0:02:16.4]} 46... Kc7 {[%clk 0:01:04.7]} 47. g8=Q
{[%clk 0:02:13.1]} 47... Qh4+ {[%clk 0:01:03.3]} 48. Qh3 {[%clk 0:02:11.5]}
48... Qf2+ {[%clk 0:01:00.6]} 49. Qgg2 {[%clk 0:02:09.3]} 49... Qf4+ {[%clk
0:00:59.4]} 50. Kh1 {[%clk 0:01:56.9]} 50... Qc1+ {[%clk 0:00:51.5]} 51. Qg1
{[%clk 0:01:53.2]} 51... Qxg1+ {[%clk 0:00:46.8]} 52. Kxg1 {[%clk 0:01:52]}
52... Ne2+ {[%clk 0:00:46]} 53. Kf2 {[%clk 0:01:47.9]} 53... Nf4 {[%clk
0:00:44.4]} 54. Qxh7+ {[%clk 0:01:37]} 54... Kxd8 {[%clk 0:00:43.4]} 55. Qb7
{[%clk 0:01:23.8]} 55... Nxd3+ {[%clk 0:00:41.6]} 56. Kf1 {[%clk 0:01:21.8]}
56... Nf4 {[%clk 0:00:37.3]} 57. Qxb6+ {[%clk 0:01:19.9]} 57... Ke7 {[%clk
0:00:36]} 58. Qxc5+ {[%clk 0:01:18.9]} 58... Kf7 {[%clk 0:00:35.1]} 59. Qc7+
{[%clk 0:01:16.4]} 59... Kg8 {[%clk 0:00:34.1]} 60. Qd8+ {[%clk 0:01:13.6]}
60... Kg7 {[%clk 0:00:32.2]} 61. Qe7+ {[%clk 0:01:12]} 61... Kg8 {[%clk
0:00:29.5]} 62. Qxf6 {[%clk 0:01:10.9]} 62... d3 {[%clk 0:00:28.8]} 63. Qxe5
{[%clk 0:01:06.7]} 63... d2 {[%clk 0:00:28.1]} 64. Qe8+ {[%clk 0:00:56]} 64...
Kg7 {[%clk 0:00:26.3]} 65. Qd7+ {[%clk 0:00:54.3]} 65... Kf6 {[%clk 0:00:24.6]}
66. Qxd2 {[%clk 0:00:52.5]} 66... Kxf5 {[%clk 0:00:23.1]} 67. c5 {[%clk
0:00:46.5]} 67... Ne6 {[%clk 0:00:21.5]} 68. c6 {[%clk 0:00:44.6]} 68... Kf6
{[%clk 0:00:20.8]} 69. Qd6 {[%clk 0:00:40.2]} 69... Kf7 {[%clk 0:00:19]} 70. c7
{[%clk 0:00:38.8]} 70... Kf6 {[%clk 0:00:18.3]} 71. c8=Q {[%clk 0:00:36.6]}
71... Kg7 {[%clk 0:00:17.4]} 72. Qcxe6 {[%clk 0:00:33.1]} 72... Kh7 {[%clk
0:00:16.2]} 73. Qg6+ {[%clk 0:00:31.6]} 73... Kh8 {[%clk 0:00:15]} 74. Qf8#
{[%clk 0:00:30.6]} 1-0

[Event "Live Chess"]
[Site "Chess.com"]
[Date "2024.06.01"]
[Round "-"]
[White "Andysav3"]
[Black "NAZRIZ1977"]
[Result "1-0"]
[WhiteElo "1856"]
[BlackElo "2115"]
[TimeControl "300"]
[EndTime "9:41:10 PDT"]
[Termination "Andysav3 won by resignation"]

1. e4 {[%clk 0:04:57.8]} 1... c5 {[%clk 0:04:59.1]} 2. c3 {[%clk 0:04:56.5]}
2... Nf6 {[%clk 0:04:57.6]} 3. e5 {[%clk 0:04:54.8]} 3... Nd5 {[%clk 0:04:56.7]}
4. d4 {[%clk 0:04:54.4]} 4... cxd4 {[%clk 0:04:55.5]} 5. Bc4 {[%clk 0:04:53.4]}
5... Nb6 {[%clk 0:04:54.1]} 6. Bb3 {[%clk 0:04:52.4]} 6... d6 {[%clk 0:04:52.9]}
7. exd6 {[%clk 0:04:50.6]} 7... Qxd6 {[%clk 0:04:51.3]} 8. cxd4 {[%clk
0:04:50.2]} 8... g6 {[%clk 0:04:42.6]} 9. Nc3 {[%clk 0:04:48]} 9... a6 {[%clk
0:04:35.4]} 10. Nge2 {[%clk 0:04:45.1]} 10... Bg7 {[%clk 0:04:34.2]} 11. O-O
{[%clk 0:04:42.2]} 11... O-O {[%clk 0:04:33.1]} 12. Bf4 {[%clk 0:04:35.1]} 12...
e5 {[%clk 0:04:22.2]} 13. dxe5 {[%clk 0:04:23.1]} 13... Qxd1 {[%clk 0:04:21.4]}
14. Raxd1 {[%clk 0:04:16.4]} 14... Nc6 {[%clk 0:04:21.3]} 15. Be3 {[%clk
0:04:03.6]} 15... Nd7 {[%clk 0:04:04.6]} 16. f4 {[%clk 0:04:02.6]} 16... Kh8
{[%clk 0:03:44.9]} 17. Nd5 {[%clk 0:03:58]} 17... Na5 {[%clk 0:03:41.2]} 18. Bc2
{[%clk 0:03:53.5]} 18... Nc4 {[%clk 0:03:36.5]} 19. Bc1 {[%clk 0:03:52.3]} 19...
b5 {[%clk 0:03:32.1]} 20. b3 {[%clk 0:03:34.8]} 20... Ncb6 {[%clk 0:03:30.5]}
21. Nxb6 {[%clk 0:03:29.3]} 21... Nxb6 {[%clk 0:03:30]} 22. Be4 {[%clk
0:03:28.5]} 1-0

[Event "Live Chess"]
[Site "Chess.com"]
[Date "2024.06.01"]
[Round "-"]
[White "peteopeteo"]
[Black "CarmelJane"]
[Result "0-1"]
[WhiteElo "1622"]
[BlackElo "2117"]
[TimeControl "300"]
[EndTime "9:41:30 PDT"]
[Termination "CarmelJane won by resignation"]

1. e4 {[%clk 0:04:59.8]} 1... c5 {[%clk 0:04:58.1]} 2. a3 {[%clk 0:04:58.8]}
2... e6 {[%clk 0:04:57.3]} 3. b4 {[%clk 0:04:58.7]} 3... d5 {[%clk 0:04:49.2]}
4. exd5 {[%clk 0:04:43.1]} 4... exd5 {[%clk 0:04:45.2]} 5. Bb5+ {[%clk
0:04:40.2]} 5... Nc6 {[%clk 0:04:41]} 6. bxc5 {[%clk 0:04:38]} 6... Bxc5 {[%clk
0:04:35]} 7. Bxc6+ {[%clk 0:04:37.3]} 7... bxc6 {[%clk 0:04:33.6]} 8. d4 {[%clk
0:04:37.1]} 8... Bd6 {[%clk 0:04:31]} 9. Nf3 {[%clk 0:04:34.3]} 9... Nf6 {[%clk
0:04:29.8]} 10. O-O {[%clk 0:04:33]} 10... h6 {[%clk 0:04:27.4]} 11. Re1+ {[%clk
0:04:31.1]} 11... Be6 {[%clk 0:04:27]} 12. Ne5 {[%clk 0:04:27]} 12... Qc7 {[%clk
0:04:23.5]} 13. Bf4 {[%clk 0:04:19.5]} 13... O-O {[%clk 0:04:16.1]} 14. Nd2
{[%clk 0:04:01.8]} 14... Nd7 {[%clk 0:04:11.6]} 15. Ndf3 {[%clk 0:04:00.6]}
15... Nxe5 {[%clk 0:04:06.2]} 16. Nxe5 {[%clk 0:03:57]} 16... Bxe5 {[%clk
0:03:47.5]} 17. Bxe5 {[%clk 0:03:56.9]} 17... Qd8 {[%clk 0:03:36]} 18. Rb1
{[%clk 0:03:54.2]} 18... Qe7 {[%clk 0:03:23.2]} 19. Re3 {[%clk 0:03:40.9]} 19...
Rac8 {[%clk 0:03:16.3]} 20. Qd3 {[%clk 0:03:21.6]} 20... c5 {[%clk 0:03:08.7]}
21. Rg3 {[%clk 0:03:02.5]} 21... f6 {[%clk 0:03:05.7]} 22. Bf4 {[%clk
0:02:50.7]} 22... g5 {[%clk 0:02:51.8]} 23. h4 {[%clk 0:02:39.2]} 23... Kh8
{[%clk 0:02:37.1]} 24. hxg5 {[%clk 0:02:32.7]} 24... fxg5 {[%clk 0:02:32.9]} 25.
Be5+ {[%clk 0:02:31]} 25... Rf6 {[%clk 0:02:21.6]} 26. Qg6 {[%clk 0:01:46.3]}
26... Rf8 {[%clk 0:01:49.4]} 27. Qxh6+ {[%clk 0:01:38.6]} 27... Qh7 {[%clk
0:01:44.9]} 28. Qxh7+ {[%clk 0:01:30.6]} 28... Kxh7 {[%clk 0:01:43.7]} 29. Bxf6
{[%clk 0:01:14.9]} 29... Rxf6 {[%clk 0:01:43.6]} 30. Rxg5 {[%clk 0:01:13.3]}
30... Kh6 {[%clk 0:01:40.6]} 31. Rg3 {[%clk 0:01:09.3]} 31... cxd4 {[%clk
0:01:39.6]} 32. Rb8 {[%clk 0:01:02.3]} 32... Kh7 {[%clk 0:01:33.4]} 33. Rb7+
{[%clk 0:00:59]} 33... Kh6 {[%clk 0:01:31.8]} 34. Rxa7 {[%clk 0:00:51.4]} 34...
Bf5 {[%clk 0:01:30.3]} 35. Rf3 {[%clk 0:00:42.7]} 35... Kg6 {[%clk 0:01:15.8]}
36. a4 {[%clk 0:00:38.6]} 36... Bxc2 {[%clk 0:01:11]} 37. Rxf6+ {[%clk 0:00:38]}
37... Kxf6 {[%clk 0:01:10.8]} 38. a5 {[%clk 0:00:37.2]} 38... d3 {[%clk
0:01:09.4]} 39. Ra6+ {[%clk 0:00:33.6]} 39... Ke5 {[%clk 0:01:07.6]} 40. Rc6
{[%clk 0:00:25.8]} 40... d2 {[%clk 0:01:06.3]} 41. Rxc2 {[%clk 0:00:25.7]} 41...
d1=Q+ {[%clk 0:01:05.6]} 42. Kh2 {[%clk 0:00:25.6]} 42... Qxc2 {[%clk
0:01:04.2]} 43. a6 {[%clk 0:00:25.2]} 43... Qc6 {[%clk 0:01:02.4]} 44. a7 {[%clk
0:00:24.2]} 44... Qb7 {[%clk 0:01:01.4]} 45. f3 {[%clk 0:00:22.7]} 45... Qxa7
{[%clk 0:01:00.7]} 46. g3 {[%clk 0:00:22.2]} 46... d4 {[%clk 0:00:59.9]} 47. f4+
{[%clk 0:00:22.1]} 47... Ke4 {[%clk 0:00:59.1]} 48. g4 {[%clk 0:00:21.2]} 48...
Qa3 {[%clk 0:00:56.6]} 49. g5 {[%clk 0:00:21.1]} 49... d3 {[%clk 0:00:56.1]} 0-1

[Event "Live Chess"]
[Site "Chess.com"]
[Date "2024.06.01"]
[Round "-"]
[White "mrsmarple1968"]
[Black "Ksenia_2013"]
[Result "1-0"]
[WhiteElo "1795"]
[BlackElo "725"]
[TimeControl "300"]
[EndTime "9:41:34 PDT"]
[Termination "mrsmarple1968 won by checkmate"]

1. e4 {[%clk 0:04:45.3]} 1... e5 {[%clk 0:04:58.3]} 2. Bc4 {[%clk 0:04:42.6]}
2... Nf6 {[%clk 0:04:56.3]} 3. d3 {[%clk 0:04:40.8]} 3... Bc5 {[%clk 0:04:54.5]}
4. Nf3 {[%clk 0:04:38.7]} 4... O-O {[%clk 0:04:52.3]} 5. c3 {[%clk 0:04:36.3]}
5... Nc6 {[%clk 0:04:50.4]} 6. O-O {[%clk 0:04:33.8]} 6... d6 {[%clk 0:04:47.4]}
7. Re1 {[%clk 0:04:32.1]} 7... Bg4 {[%clk 0:04:43.5]} 8. Nbd2 {[%clk 0:04:19.5]}
8... Na5 {[%clk 0:04:36]} 9. Bb5 {[%clk 0:04:17.8]} 9... c6 {[%clk 0:04:30.8]}
10. Ba4 {[%clk 0:04:14.7]} 10... b5 {[%clk 0:04:28.9]} 11. Bc2 {[%clk
0:04:12.9]} 11... d5 {[%clk 0:04:22]} 12. h3 {[%clk 0:04:00.9]} 12... Be6 {[%clk
0:04:14.5]} 13. Nxe5 {[%clk 0:03:57.1]} 13... Bd6 {[%clk 0:04:04.9]} 14. Nef3
{[%clk 0:03:53.8]} 14... Bxh3 {[%clk 0:03:58.4]} 15. gxh3 {[%clk 0:03:51.1]}
15... Nh5 {[%clk 0:03:56]} 16. e5 {[%clk 0:03:47.5]} 16... Re8 {[%clk
0:03:46.1]} 17. exd6 {[%clk 0:03:43.7]} 17... Rxe1+ {[%clk 0:03:43.6]} 18. Qxe1
{[%clk 0:03:38.8]} 18... Qxd6 {[%clk 0:03:36.2]} 19. Qe5 {[%clk 0:03:29.4]}
19... Qg6+ {[%clk 0:03:33.5]} 20. Qg5 {[%clk 0:03:26.2]} 20... Qe6 {[%clk
0:03:27.3]} 21. Qg4 {[%clk 0:03:21.8]} 21... Nf6 {[%clk 0:03:22.8]} 22. Qxe6
{[%clk 0:03:18.9]} 22... fxe6 {[%clk 0:03:19.1]} 23. Ne5 {[%clk 0:03:16.8]}
23... Rf8 {[%clk 0:03:12.6]} 24. d4 {[%clk 0:03:12.5]} 24... Nb7 {[%clk
0:03:06.6]} 25. Nxc6 {[%clk 0:03:07.9]} 25... Ne4 {[%clk 0:03:01.6]} 26. Bxe4
{[%clk 0:03:05.9]} 26... dxe4 {[%clk 0:03:00]} 27. Nxe4 {[%clk 0:03:04.3]} 27...
Rf3 {[%clk 0:02:52.7]} 28. Kg2 {[%clk 0:03:01.3]} 28... Rf4 {[%clk 0:02:48.7]}
29. Bxf4 {[%clk 0:02:55.9]} 29... h6 {[%clk 0:02:39.8]} 30. Nd6 {[%clk
0:02:53.6]} 30... Nxd6 {[%clk 0:02:35.7]} 31. Bxd6 {[%clk 0:02:51.9]} 31... g5
{[%clk 0:02:31.7]} 32. Re1 {[%clk 0:02:49.4]} 32... Kg7 {[%clk 0:02:30.7]} 33.
Rxe6 {[%clk 0:02:46]} 33... Kf7 {[%clk 0:02:29.2]} 34. Re1 {[%clk 0:02:44.3]}
34... Kg6 {[%clk 0:02:27.4]} 35. Nxa7 {[%clk 0:02:42.8]} 35... h5 {[%clk
0:02:25.9]} 36. Nxb5 {[%clk 0:02:41]} 36... Kf5 {[%clk 0:02:24.3]} 37. a4 {[%clk
0:02:39.1]} 37... g4 {[%clk 0:02:19.6]} 38. a5 {[%clk 0:02:36.8]} 38... gxh3+
{[%clk 0:02:17.6]} 39. Kxh3 {[%clk 0:02:35.9]} 39... Kg5 {[%clk 0:02:14.2]} 40.
a6 {[%clk 0:02:33.9]} 40... h4 {[%clk 0:02:12.7]} 41. a7 {[%clk 0:02:32.5]}
41... Kh5 {[%clk 0:02:11.3]} 42. a8=Q {[%clk 0:02:29.8]} 42... Kg5 {[%clk
0:02:09.5]} 43. Qf8 {[%clk 0:02:24.9]} 43... Kh5 {[%clk 0:02:07]} 44. Qf5+
{[%clk 0:02:17.3]} 44... Kh6 {[%clk 0:02:04.4]} 45. Kxh4 {[%clk 0:02:13.4]}
45... Kg7 {[%clk 0:02:00.4]} 46. Rg1+ {[%clk 0:02:10.7]} 46... Kh8 {[%clk
0:01:58.7]} 47. Kg4 {[%clk 0:02:06.3]} 47... Kg8 {[%clk 0:01:53.5]} 48. Kf4+
{[%clk 0:02:05.1]} 48... Kh8 {[%clk 0:01:51]} 49. Qh5# {[%clk 0:02:03.8]} 1-0